fUST/lending_fUST_20250717
["ID","MTS","AMOUNT","RATE_DAILY","PERIOD"]
[372695629,1752742268578,-831.12,0.00021711,2]
[372695630,1752742268588,-460.0,0.00021711,2]
[372695631,1752742268597,-707.35,0.00021711,2]
[372695632,1752742268607,-800.29,0.00021711,2]
[372695633,1752742268617,-1001.39,0.00021711,2]
[372695634,1752742268630,-637.99,0.00021711,2]
[372695635,1752742268639,-460.0,0.00021711,2]
[372695636,1752742268649,-3000.0,0.00021712,2]
[372695637,1752742268658,-579.71,0.00021718,2]
[372695638,1752742268668,-491.54,0.00021718,2]
[372695639,1752742268678,-460.0,0.00021718,2]
[372695640,1752742268687,-460.0,0.00021718,2]
[372695641,1752742268697,-597.14,0.00021718,2]
[372695642,1752742268707,-160.0,0.0002174,4]
[372695643,1752742268716,-660.0,0.00021777,2]
[372695644,1752742268726,-162.95721284,0.00021781,2]
[372695645,1752742268736,-151.0,0.00021789,2]
[372695646,1752742268745,-1000.74567523,0.000218,3]
[372695647,1752742268754,-3894.02,0.00021815,2]
[372695648,1752742268763,-988.81,0.00021815,2]
[372695649,1752742268773,-1519.82,0.00021815,2]
[372695650,1752742268782,-460.0,0.00021815,2]
[372695651,1752742268793,-1835.66,0.00021815,2]
[372695652,1752742268803,-460.74,0.00021815,2]
[372695653,1752742268812,-1041.54,0.00021815,2]
[372695654,1752742268822,-1673.12,0.00021815,2]
[372695655,1752742268832,-460.0,0.00021816,2]
[372695656,1752742268842,-652.94,0.00021816,2]
[372695657,1752742268852,-654.61,0.00021816,2]
[372695658,1752742268861,-653.79,0.00021816,2]
[372695659,1752742268873,-585.48,0.00021816,2]
[372695660,1752742268883,-819.09,0.00021816,2]
[372695661,1752742268892,-1350.01,0.00021817,2]
[372695662,1752742268901,-154.370341,0.00021819,2]
[372695663,1752742268911,-154.370341,0.00021819,2]
[372695664,1752742268920,-151.0,0.00021831,2]
[372695665,1752742268930,-326.763875,0.00021831,2]
[372695666,1752742268939,-326.763875,0.00021831,2]
[372695667,1752742268950,-340.057027,0.00021831,2]
[372695668,1752742268959,-286.460795,0.00021831,2]
[372695669,1752742268968,-223.026461,0.00021831,2]
[372695670,1752742268978,-223.026461,0.00021831,2]
[372695671,1752742268988,-294.71946598,0.000219,2]
[372695672,1752742268998,-500.0,0.00021904,2]
[372695673,1752742269007,-114489.14577941,0.00021916,2]
[372695674,1752742269016,-151.0,0.00021916,2]
[372695675,1752742269026,-151.0,0.00021916,2]
[372695676,1752742269035,-151.0,0.00021916,2]
[372695677,1752742269045,-151.0,0.00021916,2]
[372695678,1752742269055,-151.0,0.00021916,2]
[372695679,1752742269064,-154.370341,0.00021916,2]
[372695680,1752742269073,-154.370341,0.00021916,2]
[372695681,1752742269083,-151.0,0.00021916,2]
[372695682,1752742269093,-492.932174,0.00021916,2]
[372695683,1752742269102,-492.932174,0.00021916,2]
[372695684,1752742269112,-151.0,0.00021916,2]
[372695685,1752742269124,-170.229647,0.00021916,2]
[372695686,1752742269133,-170.229647,0.00021916,2]
[372695687,1752742269143,-151.0,0.00021916,2]
[372695688,1752742269152,-165.21691,0.00021916,2]
[372695689,1752742269162,-507.655114,0.00021916,2]
[372695690,1752742269171,-165.21691,0.00021916,2]
[372695691,1752742269181,-507.655114,0.00021916,2]
[372695692,1752742269190,-155.74075,0.00021916,2]
[372695693,1752742269199,-151.0,0.00021916,2]
[372695694,1752742269209,-151.0,0.00021916,2]
[372695695,1752742269316,-151.0,0.00021916,2]
[372695696,1752742269327,-151.0,0.00021916,2]
[372695697,1752742269337,-151.0,0.00021916,2]
[372695698,1752742269347,-151.0,0.00021916,2]
[372695699,1752742269356,-151.0,0.00021916,2]
[372695700,1752742269367,-151.0,0.00021916,2]
[372695701,1752742269379,-413.11418,0.00021916,2]
[372695702,1752742269388,-151.0,0.00021916,2]
[372695703,1752742269398,-413.11418,0.00021916,2]
[372695704,1752742269407,-151.0,0.00021916,2]
[372695705,1752742269417,-173.018346,0.00021916,2]
[372695706,1752742269426,-173.018346,0.00021916,2]
[372695707,1752742269436,-151.0,0.00021916,2]
[372695708,1752742269446,-506.442148,0.00021916,2]
[372695709,1752742269455,-151.0,0.00021916,2]
[372695710,1752742269465,-506.442148,0.00021916,2]
[372695711,1752742269475,-151.0,0.00021916,2]
[372695712,1752742269484,-385.76817,0.00021916,2]
[372695713,1752742269494,-385.76817,0.00021916,2]
[372695714,1752742269504,-151.0,0.00021916,2]
[372695715,1752742269514,-207.644531,0.00021916,2]
[372695716,1752742269523,-207.644531,0.00021916,2]
[372695717,1752742269533,-890.036706,0.00021916,2]
[372695718,1752742269544,-2451.099952,0.00021916,2]
[372695719,1752742269553,-890.036706,0.00021916,2]
[372695720,1752742269563,-2451.099952,0.00021916,2]
[372695721,1752742269572,-151.0,0.00021917,2]
[372695722,1752742269582,-151.0,0.00021917,2]
[372695723,1752742269592,-500.0,0.00021917,2]
[372695724,1752742269601,-500.0,0.00021917,2]
[372695725,1752742269611,-500.0,0.00021917,2]
[372695726,1752742269622,-500.0,0.00021917,2]
[372695727,1752742269633,-500.0,0.00021917,2]
[372695728,1752742269642,-500.0,0.00021917,2]
[372695729,1752742269652,-500.0,0.00021917,2]
[372695730,1752742269663,-510.76042761,0.00021917,2]
[372695731,1752742269673,-162.95721284,0.00021918,2]
[372695732,1752742269683,-385.384019,0.00021918,2]
[372695733,1752742269693,-385.384019,0.00021918,2]
[372695734,1752742269706,-385.384019,0.00021918,2]
[372695735,1752742269716,-385.384019,0.00021918,2]
[372695736,1752742269728,-385.384019,0.00021918,2]
[372695737,1752742269738,-385.384019,0.00021918,2]
[372695738,1752742269749,-385.384019,0.00021918,2]
[372695739,1752742269760,-385.384019,0.00021918,2]
[372695740,1752742269771,-385.384019,0.00021918,2]
[372695741,1752742269782,-385.384019,0.00021918,2]
[372695742,1752742269792,-152.951833,0.00021918,2]
[372695743,1752742269801,-152.951833,0.00021918,2]
[372695744,1752742269810,-152.951833,0.00021918,2]
[372695745,1752742269820,-152.951833,0.00021918,2]
[372695746,1752742269830,-152.951833,0.00021918,2]
[372695747,1752742269839,-152.951833,0.00021918,2]
[372695748,1752742269851,-152.951833,0.00021918,2]
[372695749,1752742269860,-152.951833,0.00021918,2]
[372695750,1752742269869,-152.951833,0.00021918,2]
[372695751,1752742269881,-152.951833,0.00021918,2]
[372695752,1752742269890,-152.951833,0.00021918,2]
[372695753,1752742269900,-152.951833,0.00021918,2]
[372695754,1752742269909,-150.0,0.00021918,2]
[372695755,1752742269919,-200.0,0.00021918,2]
[372695756,1752742269929,-150.0,0.00021918,2]
[372695757,1752742269938,-260.21401573,0.00021918,2]
[372695758,1752742269949,-152.99582741,0.00021918,2]
[372695759,1752742269959,-1596.0,0.00021918,2]
[372695760,1752742269969,-500.0,0.00021918,2]
[372695761,1752742269978,-500.0,0.00021918,2]
[372695762,1752742269988,-198.2206126,0.00021918,2]
[372695763,1752742269998,-151.0,0.00021918,2]
[372695764,1752742270007,-473.11865944,0.00021918,2]
[372695765,1752742270017,-500.0,0.00021918,2]
[372695766,1752742270027,-500.0,0.00021918,2]
[372695767,1752742270038,-500.0,0.00021918,2]
[372695768,1752742270048,-500.0,0.00021918,2]
[372695769,1752742270057,-669.0,0.00021918,2]
[372695770,1752742270067,-151.0,0.00021918,2]
[372695771,1752742270078,-324.68948773,0.00021918,2]
[372695772,1752742270087,-500.0,0.00021918,2]
[372695773,1752742270098,-151.0,0.00021918,2]
[372695774,1752742270108,-247.18468876,0.00021918,2]
[372695775,1752742270118,-151.0,0.00021918,2]
[372695776,1752742270130,-151.87870992,0.00021918,2]
[372695777,1752742270139,-158.38,0.0002192,4]
[372695778,1752742270149,-159.7,0.0002192,4]
[372695779,1752742270159,-292.4,0.00021926,4]
[372695780,1752742270169,-13187.91523847,0.00021934,6]
[372695781,1752742270179,-150.0,0.00021973,2]
[372695782,1752742270189,-150.0,0.00021973,2]
[372695783,1752742270198,-200.921694,0.00021973,7]
[372695784,1752742270208,-151.0,0.00021973,7]
[372695785,1752742270218,-151.0,0.00021973,7]
[372695786,1752742270227,-151.0,0.00021973,7]
[372695787,1752742270237,-151.0,0.00021973,7]
[372695788,1752742270246,-198.112528,0.00021973,7]
[372695789,1752742270256,-198.112528,0.00021973,7]
[372695790,1752742270266,-151.0,0.00021973,7]
[372695791,1752742270277,-151.0,0.00021973,7]
[372695792,1752742270286,-197.746617,0.00021973,7]
[372695793,1752742270297,-197.746617,0.00021973,7]
[372695794,1752742270307,-460.0,0.00021981,2]
[372695795,1752742270318,-460.0,0.00021981,2]
[372695796,1752742270328,-2160.9,0.00021981,2]
[372695797,1752742270338,-460.0,0.00021983,2]
[372695798,1752742270347,-4972.9,0.00021983,2]
[372695799,1752742270357,-3346.2,0.00021983,2]
[372695800,1752742270367,-781.73,0.00021983,2]
[372695801,1752742270379,-2840.52,0.00021983,2]
[372695802,1752742270389,-2577.85,0.00021983,2]
[372695803,1752742270398,-460.0,0.00021983,2]
[372695804,1752742270408,-1173.34,0.00021983,2]
[372695805,1752742270418,-711.25,0.00021983,2]
[372695806,1752742270429,-1060.78,0.00021985,2]
[372695807,1752742270439,-457.65,0.00021985,2]
[372695808,1752742270449,-831.12,0.00021985,2]
[372695809,1752742270460,-460.0,0.00021985,2]
[372695810,1752742270470,-707.35,0.00021985,2]
[372695811,1752742270479,-800.29,0.00021985,2]
[372695812,1752742270490,-1001.39,0.00021985,2]
[372695813,1752742270500,-637.99,0.00021985,2]
[372695814,1752742270510,-460.0,0.00021985,2]
[372695815,1752742270519,-579.71,0.00021992,2]
[372695816,1752742270529,-491.54,0.00021992,2]
[372695817,1752742270539,-460.0,0.00021992,2]
[372695818,1752742270548,-460.0,0.00021992,2]
[372695819,1752742270558,-597.14,0.00021992,2]
[372695820,1752742270569,-680.0,0.00021992,2]
[372695821,1752742270578,-200.0,0.00021999,2]
[372695822,1752742270588,-294.79733788,0.00021999,2]
[372695823,1752742270600,-5940.33648032,0.00022,2]
[372695824,1752742270610,-2000.0,0.00022,14]
[372695825,1752742270622,-2000.0,0.00022,14]
[372695826,1752742270634,-1392.85,0.00022,14]
[372695827,1752742270643,-2131.0,0.00022,15]
[372695828,1752742270653,-75232.78270097,0.00022,2]
[372695829,1752742270666,-352.68495374,0.00022,2]
[372695830,1752742270676,-56456.42647882,0.00022,2]
[372695831,1752742270686,-7494.1932499,0.00022,2]
[372695832,1752742270698,-370.87880604,0.00022,14]
[372695833,1752742270710,-29579.51,0.00022,7]
[372695834,1752742270719,-151.0,0.00022,7]
[372695835,1752742270729,-151.0,0.00022,7]
[372695836,1752742270739,-151.0,0.00022,7]
[372695837,1752742270750,-151.0,0.00022,7]
[372695838,1752742270759,-151.0,0.00022,7]
[372695839,1752742270770,-154.370341,0.00022,7]
[372695840,1752742270780,-154.370341,0.00022,7]
[372695841,1752742270791,-151.0,0.00022,7]
[372695842,1752742270801,-151.0,0.00022,7]
[372695843,1752742270811,-151.0,0.00022,7]
[372695844,1752742270820,-492.932174,0.00022,7]
[372695845,1752742270829,-203.858254,0.00022,7]
[372695846,1752742270838,-492.932174,0.00022,7]
[372695847,1752742270848,-203.858254,0.00022,7]
[372695848,1752742270857,-151.0,0.00022,7]
[372695849,1752742270867,-151.0,0.00022,7]
[372695850,1752742270877,-170.229647,0.00022,7]
[372695851,1752742270887,-170.229647,0.00022,7]
[372695852,1752742270895,-151.0,0.00022,7]
[372695853,1752742270905,-151.0,0.00022,7]
[372695854,1752742270914,-151.0,0.00022,7]
[372695855,1752742270924,-60333.3,0.00022,2]
[372695856,1752742270933,-151.0,0.00022,7]
[372695857,1752742270943,-4089.19,0.00022,7]
[372695858,1752742270952,-151.0,0.00022,7]
[372695859,1752742270962,-290.997788,0.00022,7]
[372695860,1752742270971,-198.112528,0.00022,7]
[372695861,1752742270980,-198.112528,0.00022,7]
[372695862,1752742270989,-151.0,0.00022,7]
[372695863,1752742270998,-151.0,0.00022,7]
[372695864,1752742271007,-326.763875,0.00022,7]
[372695865,1752742271017,-326.763875,0.00022,7]
[372695866,1752742271026,-340.057027,0.00022,7]
[372695867,1752742271035,-8595.62,0.00022,7]
[372695868,1752742271045,-197.746617,0.00022,7]
[372695869,1752742271054,-197.746617,0.00022,7]
[372695870,1752742271063,-286.460795,0.00022,7]
[372695871,1752742271073,-223.026461,0.00022,7]
[372695872,1752742271082,-223.026461,0.00022,7]
[372695873,1752742271091,-165.21691,0.00022,7]
[372695874,1752742271100,-507.655114,0.00022,7]
[372695875,1752742271110,-165.21691,0.00022,7]
[372695876,1752742271119,-507.655114,0.00022,7]
[372695877,1752742271129,-385.384019,0.00022,7]
[372695878,1752742271138,-385.384019,0.00022,7]
[372695879,1752742271147,-151.0,0.00022,7]
[372695880,1752742271156,-151.0,0.00022,7]
[372695881,1752742271166,-151.0,0.00022,7]
[372695882,1752742271175,-151.0,0.00022,7]
[372695883,1752742271185,-151.0,0.00022,7]
[372695884,1752742271195,-151.0,0.00022,7]
[372695885,1752742271205,-263.909988,0.00022,7]
[372695886,1752742271214,-151.0,0.00022,3]
[372695887,1752742271223,-413.11418,0.00022,7]
[372695888,1752742271234,-151.0,0.00022,7]
[372695889,1752742271338,-413.11418,0.00022,7]
[372695890,1752742271347,-151.0,0.00022,7]
[372695891,1752742271358,-173.018346,0.00022,7]
[372695892,1752742271367,-173.018346,0.00022,7]
[372695893,1752742271378,-12607.95677342,0.00022,7]
[372695894,1752742271387,-214.44804168,0.00022,7]
[372695895,1752742271397,-151.0,0.00022,7]
[372695896,1752742271406,-506.442148,0.00022,7]
[372695897,1752742271415,-223.558371,0.00022,7]
[372695898,1752742271425,-506.442148,0.00022,7]
[372695899,1752742271434,-151.0,0.00022,7]
[372695900,1752742271444,-385.76817,0.00022,7]
[372695901,1752742271453,-385.76817,0.00022,7]
[372695902,1752742271463,-476.16111942,0.00022,7]
[372695903,1752742271472,-207.644531,0.00022,7]
[372695904,1752742271482,-207.644531,0.00022,7]
[372695905,1752742271492,-152.951833,0.00022,7]
[372695906,1752742271501,-152.951833,0.00022,7]
[372695907,1752742271512,-890.036706,0.00022,7]
[372695908,1752742271521,-2451.099952,0.00022,7]
[372695909,1752742271531,-890.036706,0.00022,7]
[372695910,1752742271540,-2451.099952,0.00022,7]
[372695911,1752742271549,-162.95721284,0.00022055,2]
[372695912,1752742271559,-326.763875,0.00022072,7]
[372695913,1752742271568,-326.763875,0.00022072,7]
[372695914,1752742271578,-340.057027,0.00022072,7]
[372695915,1752742271588,-600.0,0.0002208,2]
[372695916,1752742271597,-286.460795,0.00022089,7]
[372695917,1752742271606,-223.026461,0.00022089,7]
[372695918,1752742271615,-223.026461,0.00022089,7]
[372695919,1752742271630,-3894.02,0.00022089,2]
[372695920,1752742271639,-988.81,0.00022089,2]
[372695921,1752742271648,-1519.82,0.00022089,2]
[372695922,1752742271657,-460.0,0.00022089,2]
[372695923,1752742271668,-1835.66,0.00022089,2]
[372695924,1752742271678,-460.74,0.00022089,2]
[372695925,1752742271687,-1041.54,0.00022089,2]
[372695926,1752742271698,-1673.12,0.00022089,2]
[372695927,1752742271708,-460.0,0.0002209,2]
[372695928,1752742271717,-652.94,0.0002209,2]
[372695929,1752742271726,-654.61,0.0002209,2]
[372695930,1752742271735,-653.79,0.0002209,2]
[372695931,1752742271744,-585.48,0.0002209,2]
[372695932,1752742271753,-819.09,0.0002209,2]
[372695933,1752742271763,-1350.01,0.00022091,2]
[372695934,1752742271773,-154.370341,0.00022101,7]
[372695935,1752742271782,-154.370341,0.00022101,7]
[372695936,1752742271792,-151.0,0.00022102,7]
[372695937,1752742271801,-151.0,0.00022102,7]
[372695938,1752742271810,-151.0,0.00022102,7]
[372695939,1752742271820,-151.0,0.00022102,7]
[372695940,1752742271829,-151.0,0.00022104,7]
[372695941,1752742271839,-4000.0,0.00022108,2]
[372695942,1752742271848,-3000.0,0.00022112,2]
[372695943,1752742271858,-3000.0,0.00022112,2]
[372695944,1752742271867,-1488.74686382,0.00022112,2]
[372695945,1752742271877,-3000.0,0.00022112,2]
[372695946,1752742271887,-1607.1850976,0.00022112,2]
[372695947,1752742271897,-561.575187,0.0002214,3]
[372695948,1752742271906,-160.0,0.0002216,5]
[372695949,1752742271916,-1596.0,0.00022192,2]
[372695950,1752742271926,-151.0,0.00022192,2]
[372695951,1752742271936,-500.0,0.00022192,2]
[372695952,1752742271945,-500.0,0.00022192,2]
[372695953,1752742271955,-500.0,0.00022192,2]
[372695954,1752742271964,-500.0,0.00022192,2]
[372695955,1752742271974,-669.0,0.00022192,2]
[372695956,1752742271983,-151.0,0.00022192,2]
[372695957,1752742271993,-526.70959995,0.00022192,2]
[372695958,1752742272002,-223.87291385,0.00022192,2]
[372695959,1752742272012,-151.0,0.00022192,2]
[372695960,1752742272022,-13187.91523847,0.0002221,6]
[372695961,1752742272033,-162.95721284,0.00022219,2]
[372695962,1752742272043,-460.0,0.00022255,2]
[372695963,1752742272052,-460.0,0.00022255,2]
[372695964,1752742272062,-2160.9,0.00022255,2]
[372695965,1752742272072,-322.26191781,0.00022257,2]
[372695966,1752742272082,-4972.9,0.00022257,2]
[372695967,1752742272091,-3346.2,0.00022257,2]
[372695968,1752742272101,-781.73,0.00022257,2]
[372695969,1752742272110,-2840.52,0.00022257,2]
[372695970,1752742272120,-2577.85,0.00022257,2]
[372695971,1752742272131,-460.0,0.00022257,2]
[372695972,1752742272140,-1173.34,0.00022257,2]
[372695973,1752742272149,-711.25,0.00022257,2]
[372695974,1752742272159,-1060.78,0.00022259,2]
[372695975,1752742272169,-151.0,0.00022259,7]
[372695976,1752742272179,-831.12,0.00022259,2]
[372695977,1752742272194,-151.0,0.00022259,7]
[372695978,1752742272212,-460.0,0.00022259,2]
[372695979,1752742272230,-707.35,0.00022259,2]
[372695980,1752742272241,-800.29,0.00022259,2]
[372695981,1752742272251,-1001.39,0.00022259,2]
[372695982,1752742272260,-637.99,0.00022259,2]
[372695983,1752742272270,-2451.099952,0.00022259,7]
[372695984,1752742272279,-2451.099952,0.00022259,7]
[372695985,1752742272288,-460.0,0.00022259,2]
[372695986,1752742272297,-3500.0,0.0002226,2]
[372695987,1752742272307,-165.21691,0.00022266,7]
[372695988,1752742272316,-507.655114,0.00022266,7]
[372695989,1752742272326,-165.21691,0.00022266,7]
[372695990,1752742272335,-507.655114,0.00022266,7]
[372695991,1752742272345,-169.020571,0.00022266,7]
[372695992,1752742272355,-151.0,0.00022266,7]
[372695993,1752742272365,-151.0,0.00022266,7]
[372695994,1752742272374,-413.11418,0.00022266,7]
[372695995,1752742272384,-151.0,0.00022266,7]
[372695996,1752742272393,-185.28498,0.00022266,7]
[372695997,1752742272403,-413.11418,0.00022266,7]
[372695998,1752742272412,-173.018346,0.00022266,7]
[372695999,1752742272422,-173.018346,0.00022266,7]
[372696000,1752742272431,-579.71,0.00022266,2]
[372696001,1752742272441,-506.442148,0.00022266,7]
[372696002,1752742272451,-491.54,0.00022266,2]
[372696003,1752742272461,-506.442148,0.00022266,7]
[372696004,1752742272470,-460.0,0.00022266,2]
[372696005,1752742272480,-460.0,0.00022266,2]
[372696006,1752742272489,-597.14,0.00022266,2]
[372696007,1752742272499,-207.644531,0.00022266,7]
[372696008,1752742272509,-207.644531,0.00022266,7]
[372696009,1752742272519,-152.951833,0.00022266,7]
[372696010,1752742272529,-152.951833,0.00022266,7]
[372696011,1752742272539,-890.036706,0.00022266,7]
[372696012,1752742272549,-890.036706,0.00022266,7]
[372696013,1752742272559,-11023.71629678,0.000223,2]
[372696014,1752742272568,-151.606592,0.000223,7]
[372696015,1752742272578,-203.858254,0.000223,7]
[372696016,1752742272587,-203.858254,0.000223,7]
[372696017,1752742272597,-642.0,0.000223,2]
[372696018,1752742272606,-601.80256504,0.0002231,2]
[372696019,1752742272616,-1500.0,0.00022314,14]
[372696020,1752742272627,-1500.0,0.00022314,14]
[372696021,1752742272636,-1500.0,0.00022314,14]
[372696022,1752742272646,-1500.0,0.00022314,14]
[372696023,1752742272655,-776.858263,0.00022314,14]
[372696024,1752742272665,-385.384019,0.00022314,7]
[372696025,1752742272674,-385.384019,0.00022314,7]
[372696026,1752742272683,-151.0,0.00022314,7]
[372696027,1752742272693,-151.0,0.00022314,7]
[372696028,1752742272704,-193.828742,0.00022314,7]
[372696029,1752742272713,-151.0,0.00022314,3]
[372696030,1752742272722,-385.76817,0.00022314,7]
[372696031,1752742272732,-385.76817,0.00022314,7]
[372696032,1752742272742,-760.0,0.00022325,2]
[372696033,1752742272752,-162.95721284,0.00022356,2]
[372696034,1752742272762,-3894.02,0.00022363,2]
[372696035,1752742272772,-988.81,0.00022363,2]
[372696036,1752742272781,-1519.82,0.00022363,2]
[372696037,1752742272794,-460.0,0.00022363,2]
[372696038,1752742272803,-1835.66,0.00022363,2]
[372696039,1752742272813,-460.74,0.00022363,2]
[372696040,1752742272822,-1041.54,0.00022363,2]
[372696041,1752742272832,-1673.12,0.00022363,2]
[372696042,1752742272841,-460.0,0.00022364,2]
[372696043,1752742272851,-652.94,0.00022364,2]
[372696044,1752742272862,-654.61,0.00022364,2]
[372696045,1752742272872,-653.79,0.00022364,2]
[372696046,1752742272882,-585.48,0.00022364,2]
[372696047,1752742272892,-819.09,0.00022364,2]
[372696048,1752742272905,-1350.01,0.00022365,2]
[372696049,1752742272915,-151.0,0.00022369,7]
[372696050,1752742272925,-492.932174,0.00022369,7]
[372696051,1752742272936,-492.932174,0.00022369,7]
[372696052,1752742272947,-151.0,0.00022369,7]
[372696053,1752742272957,-151.0,0.00022369,7]
[372696054,1752742272968,-151.0,0.00022369,7]
[372696055,1752742272978,-197.746617,0.00022369,7]
[372696056,1752742272989,-197.746617,0.00022369,7]
[372696057,1752742272998,-4023.20517626,0.00022382,2]
[372696058,1752742273009,-151.0,0.00022423,7]
[372696059,1752742273019,-151.0,0.00022423,7]
[372696060,1752742273029,-151.0,0.00022423,7]
[372696061,1752742273040,-226.744143,0.00022423,7]
[372696062,1752742273051,-198.112528,0.00022423,7]
[372696063,1752742273060,-198.112528,0.00022423,7]
[372696064,1752742273070,-292.4,0.00022423,5]
[372696065,1752742273079,-300.0,0.00022466,2]
[372696066,1752742273179,-1596.0,0.00022466,2]
[372696067,1752742273195,-236.6062684,0.00022466,2]
[372696068,1752742273205,-500.0,0.00022466,2]
[372696069,1752742273215,-500.0,0.00022466,2]
[372696070,1752742273225,-500.0,0.00022466,2]
[372696071,1752742273235,-500.0,0.00022466,2]
[372696072,1752742273245,-669.0,0.00022466,2]
[372696073,1752742273255,-183.26403551,0.00022466,2]
[372696074,1752742273264,-151.0,0.00022466,2]
[372696075,1752742273273,-13187.91523847,0.00022486,7]
[372696076,1752742273283,-38668.23976475,0.0002249,7]
[372696077,1752742273292,-151.0,0.0002249,7]
[372696078,1752742273301,-151.0,0.0002249,7]
[372696079,1752742273311,-151.0,0.0002249,7]
[372696080,1752742273320,-151.0,0.0002249,7]
[372696081,1752742273330,-151.0,0.0002249,7]
[372696082,1752742273339,-151.0,0.0002249,7]
[372696083,1752742273350,-151.0,0.0002249,7]
[372696084,1752742273359,-151.0,0.0002249,7]
[372696085,1752742273369,-151.0,0.0002249,7]
[372696086,1752742273379,-151.0,0.0002249,7]
[372696087,1752742273388,-170.229647,0.0002249,7]
[372696088,1752742273398,-170.229647,0.0002249,7]
[372696089,1752742273407,-151.0,0.0002249,7]
[372696090,1752742273416,-162.95721284,0.00022493,2]
[372696091,1752742273425,-1003.965593,0.000225,2]
[372696092,1752742273435,-4000.0,0.000225,4]
[372696093,1752742273445,-300.0,0.00022521,2]
[372696094,1752742273455,-250.0,0.00022521,2]
[372696095,1752742273464,-151.0,0.00022521,7]
[372696096,1752742273474,-151.0,0.00022521,7]
[372696097,1752742273483,-151.0,0.00022521,7]
[372696098,1752742273492,-151.0,0.00022521,7]
[372696099,1752742273502,-154.370341,0.00022521,7]
[372696100,1752742273511,-154.370341,0.00022521,7]
[372696101,1752742273521,-165.0,0.00022529,2]
[372696102,1752742273531,-460.0,0.00022529,2]
[372696103,1752742273540,-2160.9,0.00022529,2]
[372696104,1752742273550,-4972.9,0.00022531,2]
[372696105,1752742273560,-3346.2,0.00022531,2]
[372696106,1752742273569,-781.73,0.00022531,2]
[372696107,1752742273579,-2840.52,0.00022531,2]
[372696108,1752742273588,-2577.85,0.00022531,2]
[372696109,1752742273597,-362.51687275,0.00022531,2]
[372696110,1752742273607,-1173.34,0.00022531,2]
[372696111,1752742273616,-711.25,0.00022531,2]
[372696112,1752742273629,-1060.78,0.00022533,2]
[372696113,1752742273638,-831.12,0.00022533,2]
[372696114,1752742273648,-460.0,0.00022533,2]
[372696115,1752742273658,-707.35,0.00022533,2]
[372696116,1752742273668,-800.29,0.00022533,2]
[372696117,1752742273678,-1001.39,0.00022533,2]
[372696118,1752742273687,-637.99,0.00022533,2]
[372696119,1752742273697,-460.0,0.00022533,2]
[372696120,1752742273706,-579.71,0.0002254,2]
[372696121,1752742273715,-491.54,0.0002254,2]
[372696122,1752742273725,-460.0,0.0002254,2]
[372696123,1752742273734,-460.0,0.0002254,2]
[372696124,1752742273743,-597.14,0.0002254,2]
[372696125,1752742273753,-326.763875,0.00022555,7]
[372696126,1752742273762,-326.763875,0.00022555,7]
[372696127,1752742273771,-340.057027,0.00022555,7]
[372696128,1752742273780,-286.460795,0.00022555,7]